bitfinex/quotes_ETHUSD_20251118
["timestamp","ask_amount","ask_price","bid_price","bid_amount"]
[1763480102909,0.002,3110.5,3108.5,0.4671]
[1763480103112,0.002,3110.5,3108.2,1.08849264]
[1763480103113,1.76680456,3110.3,3108.2,0.1815]
[1763480103435,0.405504,3110.0,3108.3,0.4671]
[1763480103638,0.002,3110.5,3108.5,8.49495549]
[1763480103884,0.002,3110.5,3108.2,0.1815]
[1763480103885,2.644384,3110.4,3108.2,0.1815]
[1763480104087,2.644384,3110.4,3104.4,1.68289342]
[1763480104088,0.85981192,3109.5,3106.9,0.4671]
[1763480104262,0.405504,3108.2,3106.4,0.4671]
[1763480104584,0.405504,3108.1,3107.1,0.4671]
[1763480104892,0.405504,3109.1,3107.6,0.4671]
[1763480105046,0.0858,3109.2,3107.8,0.4671]
[1763480105254,0.484,3109.1,3107.2,0.4671]
[1763480105451,0.405504,3109.3,3108.0,0.4681]
[1763480105695,1.63251006,3109.8,3108.0,0.4681]
[1763480105696,0.85981192,3110.0,3108.1,0.03217399]
[1763480105889,0.2646384,3110.3,3108.2,0.4671]
[1763480106092,0.2988773,3110.6,3108.2,0.4671]
[1763480106298,0.29883799,3110.6,3108.3,0.001]
[1763480106496,0.85981192,3110.3,3108.3,0.001]
[1763480106660,0.90699264,3110.1,3108.4,0.4959]
[1763480106992,0.29892005,3110.0,3108.4,0.4959]
[1763480107201,0.4674,3110.2,3108.4,0.4959]
[1763480107406,0.29888773,3110.2,3108.4,0.4959]
[1763480107642,0.002,3110.5,3108.4,0.4959]
[1763480107929,0.16775736,3110.1,3108.8,0.90699264]
[1763480108115,0.16775736,3110.1,3108.9,0.4959]
[1763480108733,0.405504,3110.0,3108.3,0.4969]
[1763480109112,0.405504,3109.8,3108.3,0.4969]
[1763480109311,1.26531592,3109.6,3108.3,0.001]
[1763480109510,0.8193223,3109.5,3108.3,0.001]
[1763480109714,0.405504,3110.0,3108.3,0.4969]
[1763480110042,1.31249664,3109.8,3108.3,0.001]
[1763480110219,1.31249664,3109.6,3108.3,0.001]
[1763480110420,0.405504,3109.4,3108.3,0.001]
[1763480110622,2.17230856,3109.2,3108.3,0.001]
[1763480110823,1.26531592,3108.6,3107.7,0.001]
[1763480111025,0.405504,3107.8,3106.3,0.4959]
[1763480111351,0.405504,3107.5,3106.3,0.4959]
[1763480111542,0.405504,3107.7,3106.3,0.4959]
[1763480111910,1.39427444,3107.9,3106.3,0.4959]
[1763480112108,0.405504,3107.7,3105.6,0.4959]
[1763480112353,0.34892154,3107.6,3106.0,0.4959]
[1763480112511,1.8615342,3108.1,3106.0,0.4959]
[1763480112696,0.9886302,3108.0,3106.0,0.4959]
[1763480112899,0.405504,3108.1,3106.0,0.4959]
[1763480113126,0.405504,3108.1,3106.0,1.40289264]
[1763480113347,2.637372,3108.0,3106.0,0.4959]
[1763480113560,0.405504,3107.8,3106.0,0.4959]
[1763480113856,1.31249664,3107.6,3106.0,0.4959]
[1763480113998,0.405504,3107.4,3106.0,0.4959]
[1763480114198,1.0949271,3107.4,3106.0,0.4959]
[1763480114425,1.0949271,3107.6,3106.0,0.4959]
[1763480114739,0.6894231,3107.6,3106.0,0.4959]
[1763480114923,0.4674,3107.7,3106.0,0.4959]
[1763480114924,0.405504,3107.7,3106.0,0.4959]
[1763480115156,0.405504,3107.5,3106.0,0.4959]
[1763480115445,0.86182147,3108.5,3106.1,0.93918735]
[1763480115610,2.82994134,3108.4,3106.2,0.4959]
[1763480115949,1.31249664,3108.2,3106.2,0.4959]
[1763480116156,1.31249664,3108.0,3106.2,0.4959]
[1763480116301,0.4674,3108.2,3106.3,0.03219264]
[1763480116643,0.405504,3107.9,3106.2,0.4959]
[1763480116842,2.962802,3107.8,3106.2,0.4959]
[1763480117145,2.962802,3107.8,3105.4,0.1864]
[1763480117146,0.405504,3107.1,3105.4,0.1864]
[1763480117448,0.405504,3106.9,3105.4,0.1864]
[1763480117743,0.90699264,3107.4,3105.5,0.52810093]
[1763480117744,0.405504,3107.4,3105.5,0.52810093]
[1763480117954,0.405504,3107.4,3105.7,8.49495549]
[1763480118251,0.405504,3107.4,3105.5,0.4959]
[1763480118252,1.31249664,3107.2,3105.5,0.4959]
[1763480118545,1.31249664,3107.0,3104.9,0.4959]
[1763480118749,1.31249664,3107.0,3103.1,0.02225108]
[1763480118750,1.31249664,3106.8,3103.1,0.02225108]
[1763480119006,0.405504,3106.4,3103.9,0.4959]
[1763480119129,4.25982147,3106.5,3103.3,0.4959]
[1763480119130,0.405504,3104.8,3103.3,0.4959]
[1763480119444,0.16490246,3104.9,3103.1,0.02225108]
[1763480119445,1.31249664,3104.6,3103.1,0.02225108]
[1763480119645,0.91293166,3104.5,3103.1,0.02225108]
[1763480119848,0.404704,3104.5,3103.2,0.4959]
[1763480120263,2.624628,3104.4,3103.1,0.02225108]
[1763480120465,0.62360246,3104.9,3103.1,0.02225108]
[1763480120630,0.90699264,3104.7,3103.1,0.02225108]
[1763480120830,0.90699264,3104.5,3103.1,0.02225108]
[1763480121062,0.90699264,3104.3,3103.1,0.02225108]
[1763480121260,0.16490246,3104.9,3103.2,0.4981248]
[1763480121480,0.16490246,3104.9,3103.3,0.90699264]
[1763480121636,0.16490246,3104.9,3103.4,0.4659]
[1763480121841,0.16490246,3104.9,3103.4,1.37289264]
[1763480122066,0.16490246,3104.9,3103.9,0.90699264]
[1763480122239,0.16490246,3104.9,3103.8,7.32344245]
[1763480122240,0.16490246,3104.9,3104.3,7.32344245]
[1763480122437,0.16490246,3104.9,3104.4,0.4659]
[1763480124124,0.16490246,3104.9,3104.6,0.001]
[1763480124483,0.405504,3104.8,3104.6,0.001]
[1763480124718,0.16490246,3104.9,3104.6,0.001]
[1763480124896,0.4587,3105.3,3104.6,0.001]
[1763480125099,0.90699264,3106.5,3104.6,0.001]
[1763480125100,0.4587,3106.2,3104.7,0.4659]
[1763480125316,0.40569966,3107.1,3105.0,7.32344245]
[1763480125494,0.1691,3107.2,3105.0,7.32344245]
[1763480125822,0.1691,3107.2,3104.6,0.001]
[1763480125823,5.170394,3107.1,3105.1,0.6656]
[1763480126024,2.668734,3107.1,3105.1,0.6656]
[1763480126252,0.1691,3107.6,3105.5,0.90699264]
[1763480126520,2.787649,3107.5,3105.4,7.32344245]
[1763480126745,1.20266754,3107.4,3105.4,0.4659]
[1763480126884,0.90699264,3107.2,3105.4,0.4659]
[1763480127207,4.249463,3107.3,3105.4,0.4659]
[1763480127208,0.405504,3106.9,3105.4,0.4659]
[1763480127417,2.289553,3106.8,3105.1,0.1997]
[1763480127614,0.405504,3106.5,3104.6,0.001]
[1763480127782,1.31249664,3106.3,3104.6,0.001]
[1763480127986,7.32344245,3105.8,3104.6,0.001]
[1763480128238,1.31249664,3105.2,3102.6,0.09083496]
[1763480128527,0.405504,3105.0,3102.6,0.09083496]
[1763480128727,2.089232,3104.9,3103.1,0.48815108]
[1763480129023,0.405504,3105.0,3103.1,0.48815108]
[1763480129315,0.405504,3104.8,3103.1,0.48815108]
[1763480129518,0.3499934,3104.7,3103.1,0.48815108]
[1763480129725,0.405504,3104.6,3103.1,0.48815108]
[1763480129894,0.405504,3104.4,3103.1,0.02225108]
[1763480130330,7.83596664,3104.4,3103.1,0.02225108]
[1763480130559,10.09953764,3104.4,3103.1,0.02225108]
[1763480130735,1.77119664,3104.4,3103.1,0.02225108]
[1763480131079,0.405504,3104.4,3103.4,0.4659]
[1763480131218,7.32344245,3105.9,3103.1,0.02225108]
[1763480131419,0.4587,3105.2,3103.1,0.02225108]
[1763480131623,0.405504,3105.0,3103.1,0.48815108]
[1763480131834,1.31249664,3104.8,3103.1,0.48815108]
[1763480132051,0.22194893,3104.7,3103.1,0.48815108]
[1763480132234,0.405504,3104.6,3103.1,0.02225108]
[1763480132436,0.70272903,3104.6,3103.1,0.02225108]
[1763480132725,3.398,3104.3,3103.1,0.02225108]
[1763480132957,0.489304,3103.2,3103.1,0.02225108]
[1763480133269,1.85499664,3103.2,3103.1,0.02225108]
[1763480133423,1.5817963,3103.2,3103.1,0.02225108]
[1763480133620,0.90699264,3103.2,3103.1,0.02225108]
[1763480134063,1.31249664,3103.2,3103.1,0.02225108]
[1763480134225,8.29444264,3103.2,3103.1,0.02225108]
[1763480134424,1.77119664,3103.2,3103.1,0.02225108]
[1763480135124,9.10088764,3103.2,3103.1,0.02225108]
[1763480135327,2.2225854,3103.2,3103.1,0.02225108]
[1763480135536,1.31249664,3103.2,3103.1,0.02225108]
[1763480135826,1.77119664,3103.2,3103.1,0.02225108]
[1763480136073,0.90699264,3103.2,3103.1,0.02225108]
[1763480136234,9.04620755,3104.9,3103.1,0.02225108]
[1763480136235,0.0838,3104.6,3103.1,0.47435108]
[1763480136652,0.0838,3104.6,3103.1,0.02225108]
[1763480136853,11.005287,3104.5,3103.1,0.02225108]
[1763480137075,1.1485887,3104.4,3103.1,0.02225108]
[1763480137223,3.554621,3104.3,3103.1,0.47435108]
[1763480137428,2.688464,3104.2,3103.1,0.02225108]
[1763480137648,7.32344245,3104.8,3103.1,0.02225108]
[1763480137649,0.90699264,3104.0,3103.1,0.02225108]
[1763480137862,7.215892,3104.1,3103.1,0.02225108]
[1763480137863,0.0838,3104.9,3103.2,0.4521]
[1763480138065,0.4806,3105.4,3103.2,0.4521]
[1763480138368,0.4806,3105.4,3103.1,0.02225108]
[1763480138369,0.90699264,3105.2,3103.1,0.02225108]
[1763480138570,0.90699264,3105.0,3103.1,0.02225108]
[1763480138724,0.405504,3104.7,3103.1,0.02225108]
[1763480138928,0.405504,3104.4,3103.1,0.02225108]
[1763480139128,1.31249664,3104.2,3103.1,0.02225108]
[1763480139336,7.32344245,3104.8,3103.1,0.02225108]
[1763480139337,1.31249664,3104.0,3103.1,0.02225108]
[1763480139546,1.31249664,3103.8,3103.1,0.02225108]
[1763480139740,0.405504,3103.8,3103.1,0.02225108]
[1763480140138,0.4806,3104.3,3103.1,0.02225108]
[1763480140331,0.9844889,3104.6,3103.1,0.02225108]
[1763480140528,0.90699264,3104.4,3103.1,0.02225108]
[1763480140732,1.63413999,3104.3,3103.1,0.47435108]
[1763480140929,0.0838,3104.9,3103.1,0.47435108]
[1763480141153,0.002,3104.3,3103.1,0.02225108]
[1763480141364,1.31249664,3104.1,3103.1,0.02225108]
[1763480141568,0.002,3104.3,3103.1,0.02225108]
[1763480141877,0.405504,3104.1,3103.1,0.02225108]
[1763480142030,0.405504,3103.9,3103.1,0.02225108]
[1763480142233,0.002,3104.3,3103.1,0.02225108]
[1763480142461,0.002,3104.3,3103.2,0.4521]
[1763480143427,0.002,3104.3,3104.2,0.1833]
[1763480143428,0.0012,3104.3,3104.2,0.1833]
[1763480143770,0.0012,3104.3,3104.2,0.6354]
[1763480144270,0.002,3105.0,3104.2,0.1833]
[1763480144561,0.002,3105.0,3104.3,0.4521]
[1763480145323,0.002,3105.0,3104.2,0.1833]
[1763480145573,0.002,3105.0,3104.3,0.4521]
[1763480146564,0.002,3105.0,3103.8,0.1833]
[1763480146744,0.002,3105.0,3104.0,0.4521]
[1763480146948,0.002,3105.0,3103.8,0.1833]
[1763480147341,0.002,3105.0,3103.9,0.4521]
[1763480148931,0.002,3105.0,3104.0,0.405504]
[1763480149350,0.002,3105.0,3104.1,0.4521]
[1763480153383,0.002,3105.0,3104.2,0.405504]
[1763480153899,0.002,3105.0,3104.3,0.4521]
[1763480154207,0.002,3105.0,3104.4,0.405504]
[1763480154491,0.002,3105.0,3104.3,0.4521]
[1763480155107,0.68999748,3106.5,3104.6,0.405504]
[1763480155257,0.86269674,3107.4,3105.9,0.1833]
[1763480155589,2.3871651,3107.9,3105.9,0.1833]
[1763480155590,0.85871024,3107.6,3105.9,0.1833]
[1763480155789,0.2993223,3107.5,3105.9,0.6354]
[1763480155957,0.4806,3107.5,3105.9,0.6354]
[1763480156306,0.90699264,3107.3,3105.0,0.90699264]
[1763480156598,11.75119423,3107.2,3105.0,0.4521]
[1763480156898,2.17519338,3106.5,3104.4,0.4521]
[1763480157099,1.31249664,3106.3,3104.4,0.4521]
[1763480157285,0.405504,3106.4,3104.4,0.4521]
[1763480157487,0.405504,3106.1,3104.4,0.4521]
[1763480157805,1.31249664,3105.9,3103.8,0.1833]
[1763480157961,0.405504,3105.7,3103.9,0.4521]
[1763480158305,0.405504,3105.8,3103.9,0.4521]
[1763480158468,0.405504,3106.1,3104.1,7.32344245]
[1763480158862,0.405504,3106.1,3104.2,0.4521]
[1763480159201,0.886104,3106.1,3104.2,0.4521]
[1763480159501,0.405504,3106.3,3104.2,0.4521]
[1763480159655,1.2064607,3106.3,3104.2,0.4521]
[1763480159859,0.16870607,3106.2,3104.3,0.405504]
[1763480160069,0.4806,3106.4,3104.2,0.4521]
[1763480160307,0.4806,3106.4,3104.0,0.001]
[1763480160308,0.405504,3106.2,3104.3,0.4521]
[1763480160647,0.405504,3105.9,3104.3,0.4521]
[1763480160823,0.405504,3105.7,3104.0,0.001]
[1763480161024,8.63593909,3105.5,3104.0,0.001]
[1763480161243,0.489304,3104.1,3104.0,0.001]
[1763480161552,0.489304,3104.1,3103.7,0.001]
[1763480161553,0.405504,3104.0,3103.7,0.001]
[1763480161697,0.969904,3104.1,3103.7,0.001]
[1763480161899,2.24862902,3105.4,3103.8,0.4521]
[1763480162138,0.86269674,3106.3,3104.1,7.32344245]
[1763480162340,0.6517,3106.5,3104.4,7.32344245]
[1763480162341,0.1711,3106.5,3104.4,7.32344245]
[1763480162541,0.1711,3106.5,3103.9,7.77554245]
[1763480162841,0.4806,3106.4,3104.1,0.405504]
[1763480163142,0.4806,3106.4,3104.2,0.4521]
[1763480163325,0.1711,3106.5,3104.3,1.31249664]
[1763480163526,0.1711,3106.4,3104.3,1.31249664]
[1763480163848,0.1711,3106.4,3104.4,0.4521]
[1763480164058,0.1711,3106.4,3103.7,0.001]
[1763480164059,0.405504,3105.7,3103.7,0.001]
[1763480164290,0.405504,3104.4,3103.7,0.001]
[1763480164766,0.90699264,3104.2,3103.7,0.001]
[1763480164967,0.86269674,3105.1,3103.8,0.4521]
[1763480165168,0.4806,3105.5,3104.1,0.1833]
[1763480165355,1.16252876,3105.8,3103.8,0.6354]
[1763480165536,1.31249664,3105.6,3103.8,0.6354]
[1763480165739,0.74015699,3105.5,3103.9,0.4521]
[1763480165953,0.90699264,3105.9,3103.9,0.4521]
[1763480166158,0.30007941,3105.8,3104.0,0.03221649]
[1763480166381,0.86269674,3106.9,3104.7,0.90699264]
[1763480166586,0.002,3107.2,3105.2,0.90699264]
[1763480166738,0.90699264,3107.0,3104.8,0.48]
[1763480166940,0.73372822,3106.9,3104.9,0.48]
[1763480167138,3.803504,3106.4,3104.3,0.48]
[1763480167442,0.99114943,3106.3,3104.3,7.80344245]
[1763480167649,0.69107957,3106.6,3104.5,0.405504]
[1763480167850,0.30020658,3106.5,3104.6,0.48]
[1763480168076,0.405504,3106.8,3104.6,0.48]
[1763480168077,1.39708606,3106.8,3104.6,0.48]
[1763480168380,0.405504,3106.6,3104.6,0.48]
[1763480168576,0.405504,3106.4,3104.6,0.48]
[1763480168780,0.70571058,3106.4,3104.6,0.48]
[1763480169087,1.09688999,3106.6,3104.6,0.48]
[1763480169391,0.64020861,3106.7,3104.6,0.48]
[1763480169392,0.405504,3106.4,3104.6,0.48]
[1763480169542,0.405504,3106.5,3104.6,0.48]
[1763480170050,0.405504,3106.8,3104.6,0.48]
[1763480170250,0.405504,3106.6,3104.6,0.48]
[1763480170471,1.31249664,3106.4,3104.6,0.48]
[1763480170785,0.90699264,3106.2,3104.6,0.48]
[1763480170988,0.30032989,3106.1,3104.6,0.48]
[1763480171288,0.405504,3106.6,3104.6,0.48]
[1763480171492,0.405504,3106.3,3103.8,0.1833]
[1763480171648,0.405504,3106.3,3104.0,0.48]
[1763480171649,2.17519338,3106.1,3104.0,0.48]
[1763480171842,0.405504,3105.7,3104.0,0.48]
[1763480172059,1.31249664,3105.5,3103.7,0.001]
[1763480172244,1.31249664,3105.3,3103.7,0.001]
[1763480172440,0.30058838,3105.2,3103.8,0.48]
[1763480172644,0.86269674,3106.3,3104.5,7.32344245]
[1763480172845,0.86269674,3107.3,3105.1,0.1921]
[1763480173086,0.90699264,3107.0,3105.1,0.1921]
[1763480173256,0.73027177,3106.9,3105.2,0.48]
[1763480173466,0.30086819,3106.8,3105.2,0.48]
[1763480173788,0.002,3107.2,3105.2,0.48]
[1763480174395,0.457,3107.2,3105.2,0.48]
[1763480174549,0.30089414,3107.1,3105.2,0.48]
[1763480174983,0.30089414,3107.1,3105.3,0.405504]
[1763480175284,0.002,3107.2,3105.2,0.48]
[1763480175444,0.002,3107.2,3105.3,0.405504]
[1763480175955,0.002,3107.2,3105.4,0.48]
[1763480176344,0.405504,3107.0,3105.4,0.48]
[1763480176583,0.4555892,3106.9,3105.4,0.48]
[1763480176793,0.002,3107.2,3105.4,0.48]
[1763480176955,0.002,3107.2,3105.9,7.32344245]
[1763480177159,0.002,3107.2,3106.0,0.48]
[1763480177386,0.002,3107.2,3107.1,0.1921]
[1763480177684,0.002,3107.6,3106.6,0.349984]
[1763480177868,0.002,3107.6,3106.6,0.6721]
[1763480178068,0.002,3107.6,3106.6,7.99554245]
[1763480178270,0.002,3107.6,3106.7,1.38699264]
[1763480178491,0.002,3107.6,3107.1,8.23043509]
[1763480178492,0.002,3107.2,3107.1,8.23043509]
[1763480178844,0.002,3107.6,3107.1,8.23043509]
[1763480179050,0.002,3107.6,3106.7,0.90699264]
[1763480179271,0.002,3107.6,3106.7,1.38699264]
[1763480179469,0.002,3107.6,3106.8,0.48]
[1763480179894,0.455,3110.2,3107.3,1.31249664]
[1763480180095,0.75447536,3110.2,3108.3,0.1921]
[1763480180370,0.002,3110.5,3108.3,0.1921]
[1763480180709,0.002,3110.5,3108.4,7.77584245]
[1763480181012,0.4595,3110.4,3108.5,0.4524]
[1763480181379,0.002,3110.5,3108.5,0.4524]
[1763480181584,0.4595,3110.4,3108.5,0.4524]
[1763480181986,0.4595,3110.4,3107.9,0.4524]
[1763480181987,0.405504,3110.1,3107.9,0.4524]
[1763480182278,1.31249664,3109.9,3107.9,0.4524]
[1763480182482,3.398812,3110.0,3107.9,0.4524]
[1763480182483,1.31249664,3109.7,3107.9,0.4524]
[1763480182709,1.31249664,3109.7,3105.6,23.97695058]
[1763480182710,1.31249664,3109.5,3107.3,0.1877]
[1763480182962,1.31249664,3109.3,3107.3,0.1877]
[1763480183069,0.405504,3109.3,3107.4,0.4524]
[1763480183274,0.4595,3109.2,3107.4,0.4524]
[1763480183474,0.405504,3109.1,3107.4,0.4524]
[1763480183671,0.0952,3109.4,3107.4,0.4524]
[1763480183971,0.4595,3110.2,3107.9,8.49672815]
[1763480184224,0.002,3110.5,3108.0,1.31249664]
[1763480184513,0.002,3110.5,3108.0,1.76489664]
[1763480184514,0.4595,3110.4,3108.0,1.76489664]
[1763480184717,0.4595,3110.4,3108.2,0.405504]
[1763480185082,0.002,3110.5,3108.3,0.4524]
[1763480185486,0.4615,3110.5,3108.3,0.4524]
[1763480185668,0.90699264,3110.3,3108.3,0.4524]
[1763480185905,0.405504,3110.0,3108.3,0.4524]
[1763480186086,0.405504,3109.8,3108.3,0.4524]
[1763480186404,0.405504,3109.8,3107.6,0.4524]
[1763480186568,0.405504,3109.7,3107.6,0.4524]
[1763480186767,0.405504,3109.4,3107.3,0.1877]
[1763480187130,1.31249664,3109.2,3106.5,0.4524]
[1763480187270,1.31249664,3109.0,3106.5,0.4524]
[1763480187474,1.31249664,3108.6,3106.5,0.4524]
[1763480187675,1.31249664,3108.4,3106.0,0.4524]
[1763480187919,8.49672815,3108.7,3105.0,0.1877]
[1763480187920,1.31249664,3108.2,3105.0,0.1877]
[1763480188213,0.4595,3108.6,3105.0,0.1877]
[1763480188214,0.405504,3108.5,3105.4,0.90699264]
[1763480188371,1.76062682,3108.5,3105.3,8.49672815]
[1763480188575,1.31249664,3108.3,3105.4,0.4524]
[1763480188885,3.33951659,3108.4,3105.4,0.4524]
[1763480188886,9.80922479,3108.1,3105.4,0.4524]
[1763480189085,1.31249664,3107.9,3105.4,0.4524]
[1763480189320,1.31249664,3107.7,3105.4,0.4524]
[1763480189474,0.405504,3107.5,3105.4,0.4524]
[1763480189676,0.1963,3107.8,3105.4,0.4524]
[1763480189677,0.4595,3107.7,3105.4,0.4524]
[1763480189908,0.405504,3107.6,3105.4,0.4524]
[1763480190108,8.49672815,3108.1,3105.4,0.4524]
[1763480190109,0.4595,3108.5,3105.6,0.90699264]
[1763480190414,0.48850297,3109.0,3105.6,0.90699264]
[1763480190415,0.4595,3108.3,3105.7,0.857904]
[1763480190914,0.4595,3108.3,3105.8,0.4524]
[1763480190915,0.405504,3108.1,3105.8,0.4524]
[1763480191117,0.405504,3108.1,3105.0,0.1877]
[1763480191118,0.405504,3107.9,3105.0,0.1877]
[1763480191269,0.405504,3107.4,3105.1,0.4524]
[1763480191475,0.405504,3107.2,3105.0,0.1877]
[1763480191734,0.405504,3107.0,3105.0,0.1877]
[1763480191900,0.405504,3106.8,3105.0,0.1877]
[1763480192102,0.405504,3106.6,3104.5,0.001]
[1763480192314,3.590081,3106.5,3104.5,0.001]
[1763480192472,0.4595,3106.6,3104.6,0.4524]
[1763480192672,0.405504,3106.5,3104.6,0.4524]
[1763480193071,0.405504,3106.3,3104.6,0.4524]
[1763480193498,0.4595,3106.2,3104.6,0.4524]
[1763480193726,0.90699264,3106.0,3104.5,0.001]
[1763480194017,0.405504,3105.8,3104.5,0.001]
[1763480194355,0.4595,3106.2,3104.6,0.4524]
[1763480194533,0.405504,3106.1,3104.6,0.4524]
[1763480194708,0.405504,3106.3,3104.6,0.4524]
[1763480195109,0.1963,3106.9,3104.7,0.405504]
[1763480195305,0.90699264,3106.7,3104.8,0.4524]
[1763480195631,0.37937736,3106.6,3104.9,0.03220715]
[1763480195853,0.4595,3106.7,3105.0,0.4524]
[1763480196052,0.1963,3106.9,3105.6,0.001]
[1763480196207,0.6796,3106.9,3105.6,0.001]
[1763480196542,0.4833,3107.5,3105.7,0.4946]
[1763480197342,2.609649,3107.4,3105.6,0.001]
[1763480197546,0.405504,3107.2,3105.6,0.001]
[1763480197750,0.4833,3107.1,3105.6,0.001]
[1763480198906,0.405504,3106.9,3105.6,0.001]
[1763480199444,0.90699264,3107.7,3105.6,0.001]
[1763480199445,0.405504,3106.7,3105.6,0.001]
[1763480199850,0.405504,3106.5,3105.6,0.001]
[1763480200053,0.4833,3106.6,3105.6,0.001]
[1763480200257,0.405504,3106.4,3105.6,0.001]
[1763480200612,0.405504,3106.3,3105.6,0.001]
[1763480200934,0.1504,3106.5,3105.6,0.001]
[1763480201139,0.405504,3106.8,3105.6,0.001]
[1763480201450,0.4833,3106.9,3105.6,0.001]
[1763480201451,0.405504,3106.4,3105.6,0.001]
[1763480201614,0.1569,3106.5,3105.6,0.001]
[1763480201822,0.4833,3106.8,3105.6,0.001]
[1763480202463,0.4833,3107.3,3105.6,0.4956]
[1763480202831,0.405504,3107.0,3105.6,0.4956]
[1763480203058,0.4833,3107.3,3105.6,0.4956]
[1763480203447,2.5925,3107.2,3105.6,0.4956]
[1763480203762,1.21457264,3107.1,3105.6,0.001]
[1763480203971,1.31249664,3106.9,3105.6,0.001]
[1763480204149,3.398,3106.6,3105.6,0.001]
[1763480204360,0.405504,3106.0,3105.6,0.001]
[1763480204564,0.405504,3105.8,3105.6,0.001]
[1763480204767,0.90699264,3105.7,3105.6,0.001]
[1763480205079,1.9096723,3105.7,3105.6,0.001]
[1763480205255,1.40818366,3105.7,3105.6,0.001]
[1763480205454,0.90699264,3106.6,3105.6,0.001]
[1763480205774,1.31249664,3106.4,3105.6,0.001]
[1763480205979,0.405504,3106.4,3105.6,0.001]
[1763480206183,3.8813,3107.0,3105.6,0.001]
[1763480206687,8.67763864,3106.9,3105.6,0.001]
[1763480206885,4.30499264,3106.7,3105.6,0.001]
[1763480207039,4.30499264,3106.5,3105.6,0.001]
[1763480207242,4.71049664,3105.7,3105.6,0.001]
[1763480207491,1.31249664,3105.7,3105.6,0.001]
[1763480207682,5.19379664,3105.7,3105.6,0.001]
[1763480207870,1.9096723,3105.7,3105.6,0.001]
[1763480208074,1.79579664,3105.7,3105.6,0.001]
[1763480208567,5.19379664,3105.7,3105.6,0.001]
[1763480208767,7.93885364,3105.7,3105.6,0.001]
[1763480208983,13.61254864,3105.7,3105.6,0.001]
[1763480209190,13.61254864,3105.7,3105.3,0.001]
[1763480209191,0.405504,3105.4,3105.3,0.001]
[1763480209393,1.46939664,3105.4,3105.3,0.001]
[1763480209610,2.3899528,3105.4,3105.3,0.001]
[1763480209772,0.90699264,3105.4,3105.3,0.001]
[1763480209958,1.7304606,3106.8,3105.3,0.001]
[1763480209959,0.1898,3106.2,3105.3,0.001]
[1763480210296,3.383085,3106.1,3105.3,0.001]
[1763480210518,0.405504,3105.9,3105.3,0.001]
[1763480210659,1.31249664,3105.7,3105.3,0.001]
[1763480210865,0.6443843,3105.8,3105.3,0.001]
[1763480211096,0.405504,3105.5,3105.3,0.001]
[1763480211309,0.1898,3106.2,3105.3,0.001]
[1763480211593,0.4833,3106.1,3105.3,0.001]
[1763480211793,0.90699264,3105.8,3105.3,0.001]
[1763480211981,0.405504,3106.0,3105.3,0.001]
[1763480212187,0.405504,3105.9,3105.3,0.001]
[1763480212894,0.17957966,3105.8,3105.3,0.001]
[1763480213472,0.1898,3106.2,3105.3,0.001]
[1763480213670,2.5136451,3107.1,3105.3,0.001]
[1763480213671,0.78219617,3106.6,3105.3,0.001]
[1763480213892,2.80737917,3106.5,3105.3,0.001]
[1763480214202,0.30758,3107.1,3105.4,0.4946]
[1763480214362,0.4833,3107.3,3105.4,0.4946]
[1763480214692,0.4833,3107.3,3105.3,0.001]
[1763480214693,3.398,3107.1,3105.3,0.001]
[1763480214908,3.398,3107.1,3105.3,0.4956]
[1763480214909,4.66207861,3107.0,3105.3,0.4956]
[1763480215091,0.86269674,3107.6,3105.3,0.4956]
[1763480215273,0.52460614,3107.5,3105.3,0.4956]
[1763480215477,0.90699264,3107.3,3105.3,0.4956]
[1763480215710,0.2993072,3107.2,3105.3,0.4956]
[1763480215866,0.68957541,3107.4,3105.3,0.4956]
[1763480215867,0.405504,3106.9,3105.3,0.4956]
[1763480216201,0.7048112,3106.9,3105.3,0.4956]
[1763480216409,1.31249664,3106.7,3105.3,0.4956]
[1763480216614,0.405504,3106.5,3105.3,0.4956]
[1763480216764,0.7048112,3106.5,3105.3,0.4956]
[1763480216964,1.40797302,3106.8,3105.3,0.4956]
[1763480216965,0.69249367,3106.7,3105.3,0.4956]
[1763480217275,0.30055671,3106.6,3105.3,0.4956]
[1763480217459,0.30055671,3106.7,3105.3,0.4956]
[1763480217665,0.30055671,3106.9,3105.3,0.4956]
[1763480217885,0.30055671,3106.8,3105.3,0.4956]
[1763480218072,0.30055671,3106.7,3105.3,0.4956]
[1763480218276,0.30055671,3106.6,3105.3,0.4956]
[1763480218490,0.30055671,3106.9,3105.3,0.4956]
[1763480218696,0.405504,3106.7,3105.3,0.4956]
[1763480218860,0.405504,3106.5,3105.3,0.4956]
[1763480219060,0.30055671,3106.4,3105.3,0.4956]
[1763480219313,0.30055671,3106.3,3105.3,0.4956]
[1763480219464,0.30055671,3106.2,3105.3,0.4956]
[1763480219665,0.405504,3106.3,3105.3,0.4956]
[1763480219872,0.30055671,3106.2,3105.3,0.4956]
[1763480220204,2.46255977,3106.8,3105.3,0.4956]
[1763480220205,0.405504,3106.8,3105.3,0.4956]
[1763480220369,0.30113159,3106.7,3106.1,0.1832]
[1763480220565,0.30113159,3106.8,3106.2,0.4946]
[1763480220805,1.05449674,3108.4,3107.4,0.1832]
[1763480220966,0.30099933,3108.3,3107.4,0.1832]
[1763480221165,0.002,3108.4,3107.5,0.4946]
[1763480222210,2.8076,3108.3,3106.4,0.4946]
[1763480222507,0.405504,3107.9,3106.4,0.4946]
[1763480222705,0.30044284,3107.8,3106.4,0.4946]
[1763480222866,0.405504,3107.6,3106.4,0.4946]
[1763480223065,0.405504,3107.4,3106.4,0.4946]
[1763480223296,0.70594684,3107.4,3106.1,0.1832]